[Event "IV Estrellas 2022"]
[Site "La Palma"]
[Date "2022.08.12"]
[Round "9.14"]
[White "Capote Robayna, Nathaniel"]
[Black "Baeza Escudero, Javier"]
[Result "1-0"]
[ECO "D00"]
[WhiteElo "2150"]
[BlackElo "1861"]
[Annotator "TA"]
[PlyCount "153"]
[EventDate "2022.08.06"]
[EventType "swiss"]
[EventCountry "ESP"]
[SourceTitle "playchess.com"]
[Source "ChessBase"]
[SourceQuality "1"]
[TimeControl "5400+30"]

{[%evp 9,153,0,0,0,0,-23,-19,-16,-15,-29,-25,-27,-18,-30,-29,-35,-33,-31,-14,-25,-27,-28,17,14,18,21,45,30,30,37,24,25,27,28,55,0,0,0,0,-7,73,45,45,45,45,45,45,45,45,45,45,22,14,8,8,0,8,8,8,0,0,0,0,0,8,8,8,8,220,220,455,448,526,491,970,858,650,587,783,775,795,720,1152,1008,6382,5601,7893,8905,6537,6924,5513,3887,29969,23,29971,29972,29970,29973,29973,29974,29974,29975,29975,29972,29974,29975,29975,29976,29976,29977,29977,29978,29978,29979,29979,29974,29974,29975,29975,29976,29976,29977,29977,29978,29978,29979,29978,29979,29980,29980,29980,29980,29980,29980,29982,29983,29984,29985,29986,29986,29987,29988,29988,29989,29992,29993]} 1. d4 {[%emt 0:00:05]} Nf6 {[%emt 0:00:12]} 2. Bf4 {[%emt 0:00:16]} d5 {[%emt 0:00:15]} 3. e3 {[%emt 0:00:09]} c5 {[%emt 0:00:14]} 4. c3 {[%emt 0:00:11]} Nc6 {[%emt 0:00:14]} 5. Nd2 {[%emt 0:00:10]} Bf5 {[%emt 0:03:22]} 6. Ngf3 {[%emt 0:03:12] D00: 1 d4 d5: Unusual lines.} Qb6 {[%emt 0:04:20]} 7. Qb3 {[%emt 0:02:03]} c4 {[%emt 0:00:53]} 8. Qxb6 {[%emt 0:00:13] The position is equal.} axb6 {[%emt 0:00:13]} 9. a3 {[%emt 0:00:12]} b5 {[%emt 0:00:55] The main line 9...b5 scores better than 9...h6.} 10. Rc1 {[%emt 0:00:17]} Nh5 {[%emt 0:05:31] [#]} 11. Bg3 $146 {[%emt 0:05:45]} ({Predecessor:} 11. Be2 Nxf4 12. exf4 f6 13. O-O e6 14. Rfe1 Bd6 15. g3 Kf7 16. Nh4 Bh3 17. Bf1 Bxf1 18. Nxf1 {½-½ (30) Yarmonov,I (2394)-Kulpruethanon,T (2278) Chess.com INT 2021}) 11... h6 {[%emt 0:10:31]} 12. Be2 {[%emt 0:07:09]} Nxg3 {[%emt 0:14:53]} 13. hxg3 {[%emt 0:00:10]} Bh7 {[%emt 0:02:22]} (13... e6 {is more complex.} 14. Ne5 Bd6 15. f4 Ke7) 14. g4 {[%emt 0:01:34]} f6 {[%emt 0:00:46]} 15. Bd1 {[%emt 0:12:25]} O-O-O {[%emt 0:13:15]} 16. Bc2 {[%emt 0:02:49]} Bxc2 {[%emt 0:02:54]} 17. Rxc2 {[%emt 0:00:08]} e6 {[%emt 0:03:57]} 18. Nh4 {[%emt 0:08:55]} Bd6 {[%emt 0:02:09]} 19. Ng6 {[%emt 0:02:09]} Rhe8 {[%emt 0:01:01]} 20. Kd1 {[%emt 0:07:30]} e5 {[%emt 0:01:55]} 21. Nf3 {[%emt 0:05:38]} exd4 {[%emt 0:05:43]} 22. exd4 {[%emt 0:04:11]} (22. Nxd4 $14 Ne5 23. Nxe5 fxe5 24. Nxb5) 22... Re4 $11 {[%emt 0:01:07]} 23. Re2 {[%emt 0:08:07] Threatens to win with Rxe4.} Rxg4 {[%emt 0:01:08]} 24. Nfh4 {[%emt 0:00:34]} Re4 {[%emt 0:04:44]} (24... Kc7 $11) 25. Rxe4 $1 $16 {[%emt 0:00:18]} dxe4 {[%emt 0:00:08]} 26. Re1 {[%emt 0:01:44]} Re8 {[%emt 0:04:30]} 27. f3 {[%emt 0:02:20]} Kd7 {[%emt 0:05:21]} 28. Rxe4 {[%emt 0:01:40]} Ne7 {[%emt 0:02:34] Against Nf5} 29. Nxe7 {[%emt 0:01:12]} Rxe7 {[%emt 0:02:12]} 30. Rxe7+ {[%emt 0:02:01]} (30. Nf5 $5 {[%cal Rf5e7]} Rxe4 31. fxe4 $14) 30... Bxe7 $14 {[%emt 0:00:10][%mdl 4096] Endgame KB-KN} 31. Nf5 {[%emt 0:03:58]} Bf8 {[%emt 0:00:11]} 32. Ke2 {[%emt 0:01:54]} Ke6 {[%emt 0:00:32]} 33. g4 {[%emt 0:01:21]} h5 {[%emt 0:01:55]} 34. Nh4 {[%emt 0:04:14]} hxg4 {[%emt 0:02:09]} 35. fxg4 {[%emt 0:00:14]} Bd6 {[%emt 0:00:58]} 36. Kf3 {[%emt 0:04:59] Against Bf4} Kf7 {[%emt 0:01:35]} 37. Ke4 {[%emt 0:00:54] Black must now prevent Nf5.} g6 {[%emt 0:01:27] Inhibits Nf5.} 38. Nf3 {[%emt 0:02:42]} Ke6 $2 {[%emt 0:00:38] White leaves nothing to chance now.} (38... Ke8 $11 {and Black stays safe.}) 39. d5+ $18 {[%emt 0:00:26]} Kf7 $2 {[%emt 0:00:06]} (39... Kd7 {might work better.} 40. Nd4 Bf8 41. Nxb5 Bh6) 40. Nd4 {[%emt 0:00:10]} Bf8 {[%emt 0:00:23]} 41. Nxb5 {[%emt 0:00:09]} Bh6 {[%emt 0:00:28]} (41... Ke7 $142 42. Kd4 g5) 42. Nd6+ {[%emt 0:00:24]} Ke7 {[%emt 0:00:09]} 43. Nxc4 {[%emt 0:02:44]} b5 {[%emt 0:00:19]} 44. Ne3 {[%emt 0:03:21]} Kd6 {[%emt 0:00:26]} 45. Nc2 {[%emt 0:00:18]} Bc1 {[%emt 0:00:31]} 46. b3 {[%emt 0:00:42]} f5+ {[%emt 0:00:59]} 47. gxf5 {[%emt 0:00:49]} gxf5+ {[%emt 0:00:08]} 48. Kxf5 {[%emt 0:00:29] Ke4 would kill now.} Kxd5 {[%emt 0:00:05]} 49. Nb4+ {[%emt 0:00:20]} Kd6 {[%emt 0:00:31]} 50. Ke4 $1 {[%emt 0:00:29]} Bxa3 {[%emt 0:00:21]} 51. Kd4 $2 {[%emt 0:00:24]} (51. Nd3 {mates} Ke7 52. b4 Ke6 53. Nf4+ Kd7 54. Ne2 Ke6 55. Nd4+ Ke7 56. Nxb5) 51... Bb2 $2 {[%emt 0:01:52][%mdl 8192]} (51... Bc1 $11) 52. Nd3 {[%emt 0:00:15] White mates.} Ba1 {[%emt 0:00:09]} 53. b4 {[%emt 0:00:26]} Kc6 {[%emt 0:00:36]} 54. Nf4 {[%emt 0:01:25]} Bb2 {[%emt 0:00:43] [#]} 55. Ne2 $1 {[%emt 0:00:01]} Ba3 {[%emt 0:01:12]} 56. Ke5 {[%emt 0:00:18]} Bb2 {[%emt 0:00:14] [#]} 57. Ke4 $1 {[%emt 0:00:21]} Ba3 {[%emt 0:00:37]} 58. Kd3 {[%emt 0:00:22]} Kd5 {[%emt 0:00:08]} 59. Nd4 {[%emt 0:00:18]} Bc1 {[%emt 0:00:50]} 60. Nxb5 {[%emt 0:00:08]} Bg5 {[%emt 0:00:53]} 61. c4+ {[%emt 0:00:16]} Kc6 {[%emt 0:00:20]} 62. Nc3 {[%emt 0:00:19]} Be7 {[%emt 0:00:41]} 63. Nd5 {[%emt 0:00:36]} Bf8 {[%emt 0:00:53]} 64. Kc3 {[%emt 0:00:19]} Bg7+ {[%emt 0:00:32]} 65. Kb3 {[%emt 0:00:10]} Bf8 {[%emt 0:00:12]} 66. Nc3 {[%emt 0:00:20]} Be7 {[%emt 0:00:25]} 67. Ne4 {[%emt 0:00:10]} Bf8 {[%emt 0:00:43]} 68. Ka4 {[%emt 0:00:30]} Be7 {[%emt 0:00:18]} 69. Ka5 {[%emt 0:00:55]} Kb7 {[%emt 0:01:22]} 70. b5 {[%emt 0:00:14]} Bd8+ {[%emt 0:00:21]} 71. Kb4 {[%emt 0:00:07]} Be7+ {[%emt 0:00:27]} 72. c5 {[%emt 0:00:07][%cal Bc4c5,Bc5c6][%mdl 32]} Bd8 {[%emt 0:00:38]} 73. Kc4 {[%emt 0:00:11]} Ba5 {[%emt 0:00:23]} 74. Kd5 {[%emt 0:00:06]} Kc7 {[%emt 0:00:07]} 75. Nd6 {[%emt 0:00:28]} Bb4 {[%emt 0:00:58]} 76. b6+ {[%emt 0:00:30]} Kb8 {[%emt 0:00:20]} 77. c6 {[%emt 0:00:07] Weighted Error Value: White=0.21 (precise) /Black=0.43} 1-0

[Event "IV Estrellas 2022"]
[Site "La Palma"]
[Date "2022.08.12"]
[Round "9.15"]
[White "Carraminana Lopez, Luis Antonio"]
[Black "Cruz Gomez, Isidro"]
[Result "0-1"]
[ECO "C54"]
[WhiteElo "1910"]
[BlackElo "2089"]
[Annotator "TA"]
[PlyCount "88"]
[EventDate "2022.08.06"]
[EventType "swiss"]
[EventCountry "ESP"]
[SourceTitle "playchess.com"]
[Source "ChessBase"]
[SourceQuality "1"]
[TimeControl "5400+30"]

{[%evp 10,88,25,18,16,16,18,27,25,22,24,24,23,23,37,12,20,20,28,29,17,17,20,10,12,9,26,0,26,5,14,19,23,0,0,-206,-195,-211,-217,-203,-214,-209,-206,-200,-195,-167,-137,-235,-208,-212,86,0,0,0,186,195,178,191,130,0,0,0,182,198,187,-18,-20,-906,-906,-891,-891,-875,-869,-854,-841,-788,-749,-5169,-2322,-1960,-1398]} 1. e4 {[%emt 0:00:31]} e5 {[%emt 0:00:13]} 2. Nf3 {[%emt 0:00:09]} Nc6 {[%emt 0:00:11]} 3. Bc4 {[%emt 0:00:14]} Nf6 {[%emt 0:00:17]} 4. d3 {[%emt 0:00:27]} Bc5 {[%emt 0:00:08]} 5. c3 {[%emt 0:00:34]} a6 {[%emt 0:00:28]} 6. Nbd2 {[%emt 0:02:54]} Ba7 {[%emt 0:00:24] C54: Giuoco Piano: 4 c3 Nf6, main lines with 5 d4 and 5 d3.} 7. O-O {[%emt 0:01:34]} d6 {[%emt 0:00:13]} 8. a4 {[%emt 0:00:22]} h6 {[%emt 0:00:11] White has an edge.} 9. Re1 {[%emt 0:00:35]} Ng4 {[%emt 0:02:40]} 10. Re2 {[%emt 0:04:16]} O-O {[%emt 0:00:11]} 11. Nf1 {[%emt 0:03:58]} Be6 {[%emt 0:02:02] [#]} 12. h3 $146 {[%emt 0:07:40]} ({Predecessor:} 12. Bxe6 fxe6 13. h3 Rxf3 14. gxf3 Nf6 15. Ng3 Nh7 16. Kg2 Qf6 17. Be3 Rf8 18. Bxa7 Qxf3+ {1-0 (46) Van Foreest,J (2614)-Kovalev,V (2683) St Petersburg 2018}) 12... Nf6 {[%emt 0:04:58]} 13. Bxe6 {[%emt 0:06:30]} fxe6 {[%emt 0:00:14]} 14. b4 {[%emt 0:05:23][%cal Bb2b4,Bb4b5][%mdl 32]} Nh5 {[%emt 0:01:14][%cal Of8f3]} 15. N1h2 {[%emt 0:00:15]} Nf4 {[%emt 0:00:18]} 16. Bxf4 {[%emt 0:00:09]} Rxf4 {[%emt 0:00:21]} 17. Qb3 {[%emt 0:01:02]} Qe7 {[%emt 0:00:35]} 18. Raa2 {[%emt 0:06:03]} Nb8 {[%emt 0:01:12]} 19. b5 {[%emt 0:08:05]} a5 {[%emt 0:00:30]} 20. d4 {[%emt 0:00:06]} Nd7 {[%emt 0:00:25]} 21. Qc4 {[%emt 0:08:32]} Bb6 {[%emt 0:09:17]} 22. dxe5 $2 {[%emt 0:04:57]} (22. g3 $11 {and White is okay.} Rf7 23. Nh4) 22... d5 $1 $19 {[%emt 0:01:21]} 23. Qb3 {[%emt 0:04:37]} Nc5 {[%emt 0:01:34]} (23... dxe4 24. Nd4 $15) (23... Rxe4 24. Rxe4 Nc5 25. Qa3 dxe4 26. Nd4 $17) 24. Qa3 {[%emt 0:00:10]} dxe4 {[%emt 0:01:28]} (24... Rxe4 25. Nd4 $17) 25. Nd4 {[%emt 0:02:18]} Qg5 $1 {[%emt 0:00:32]} 26. Rad2 {[%emt 0:05:36]} Qxe5 {[%emt 0:03:38]} 27. Qa2 {[%emt 0:00:19]} Qd5 {[%emt 0:03:21] aiming for ...Qxa2.} 28. Qc2 {[%emt 0:04:22]} (28. Ng4 $17) 28... Qc4 {[%emt 0:00:55] Hoping for ...e5.} 29. Ng4 {[%emt 0:00:11]} Nd3 $2 {[%emt 0:03:27]} (29... Nxa4 30. Ne3 Qxc3 31. Qxa4 $16) (29... Qxa4 $19 30. Qxa4 Nxa4 31. Nxe6 Rf5) 30. g3 {[%emt 0:01:11]} (30. Ne3 $16 Qc5 31. Nxe6) 30... Rxg4 $1 $11 {[%emt 0:04:21]} 31. hxg4 {[%emt 0:00:11]} Bxd4 $2 {[%emt 0:00:07]} (31... Nc5 $11 {and Black stays safe.}) 32. cxd4 $18 {[%emt 0:00:18]} Qxd4 {[%emt 0:00:08]} 33. Qxc7 {[%emt 0:03:53]} Qa1+ {[%emt 0:01:34]} (33... Qd5 $18 34. Re3 Rf8) 34. Kh2 {[%emt 0:01:30]} (34. Kg2 $1 $16 Rf8 35. Qc4 (35. Rxe4 Ne1+ 36. Rxe1 Qxe1 $16) 35... Ne1+ 36. Rxe1 $1 {[%mdl 512]} (36. Kh3 Nf3) 36... Qxe1 37. Re2) 34... Rf8 $36 {[%emt 0:01:39][%mdl 2048] ...Ne5 is the strong threat. Black is more active.} 35. Qc2 {[%emt 0:08:48]} (35. Qxa5 Ne5 36. Qc3 Qxc3 37. Kh3 Qa1 38. f4 exf3 39. Rf2 Qh1+ 40. Rh2 Qf1+) 35... Ne5 $2 {[%emt 0:01:12]} (35... Ne1 $1 $11 36. Qd1 (36. Qxe4 $2 Nf3+ 37. Qxf3 Rxf3 $19) 36... Nf3+ 37. Kg2 Qf6) 36. Rd1 $18 {[%emt 0:00:06]} ({Wrong is} 36. Qxe4 $2 Nf3+ 37. Qxf3 Rxf3 $19) 36... Nxg4+ {[%emt 0:01:44] [#]} 37. Kg2 $2 {[%emt 0:00:38]} ({White has to play} 37. Kg1 $1 $18 Qf6 38. Rf1) 37... Qe5 $11 {[%emt 0:00:48][%cal Of8f2] Threatens to win with ...Rxf2+!} 38. Rd7 $2 {[%emt 0:04:28][%mdl 8192] [#] This move loses the game for White.} (38. Rde1 $11 Qh5 39. Rh1) 38... Rxf2+ $1 $19 {[%emt 0:03:48][%mdl 512] Black is clearly winning.} 39. Rxf2 {[%emt 0:01:58]} Ne3+ {[%emt 0:00:06]} 40. Kg1 {[%emt 0:00:09]} Nxc2 {[%emt 0:00:12]} 41. Rxc2 {[%emt 0:00:01]} e3 {[%emt 0:02:00] White must now prevent ...e2.} 42. Re2 {[%emt 0:03:11]} Qe4 {[%emt 0:02:36] And now ...Qf3 would win.} 43. b6 {[%emt 0:01:29]} Qf3 {[%emt 0:00:45]} 44. Rd8+ {[%emt 0:02:00]} Kh7 {[%emt 0:00:25] Weighted Error Value: White=0.64/Black=0.27 (precise)} 0-1

[Event "IV Estrellas 2022"]
[Site "La Palma"]
[Date "2022.08.12"]
[Round "9.16"]
[White "Perez Bolanos, Joel"]
[Black "Perogio, Lorenzo"]
[Result "1-0"]
[ECO "A59"]
[WhiteElo "2036"]
[BlackElo "1890"]
[Annotator "TA"]
[PlyCount "61"]
[EventDate "2022.08.06"]
[EventType "swiss"]
[EventCountry "ESP"]
[SourceTitle "playchess.com"]
[Source "ChessBase"]
[SourceQuality "1"]
[TimeControl "5400+30"]

{[%evp 21,61,62,70,60,71,39,39,24,49,81,72,54,74,91,71,80,116,114,116,81,341,360,374,366,476,466,689,695,641,656,715,607,624,612,588,614,581,554,1431,1401,2067,1645]} 1. d4 {[%emt 0:04:13]} Nf6 {[%emt 0:00:20]} 2. c4 {[%emt 0:00:06]} c5 {[%emt 0:00:11]} 3. d5 {[%emt 0:00:05]} b5 {[%emt 0:00:24]} 4. cxb5 {[%emt 0:00:27]} a6 {[%emt 0:00:15]} 5. bxa6 {[%emt 0:00:14]} Bxa6 {[%emt 0:00:10]} 6. Nc3 {[%emt 0:00:10]} g6 {[%emt 0:00:50]} 7. e4 {[%emt 0:00:38]} Bxf1 {[%emt 0:00:23]} 8. Kxf1 {[%emt 0:00:06]} d6 {[%emt 0:00:33]} 9. g3 {[%emt 0:00:52]} Bg7 {[%emt 0:00:39]} 10. Kg2 {[%emt 0:02:10]} O-O {[%emt 0:00:30]} 11. Nf3 {[%emt 0:03:57]} Na6 {[%emt 0:04:40]} 12. Bg5 {[%emt 0:04:02] [#] A59: Benko/Volga Gambit: White castles by hand.} h6 $146 {[%emt 0:01:01]} ({Predecessor:} 12... Qb6 13. Qd2 Nc7 14. Rhe1 Rfb8 15. Rab1 Nb5 16. e5 dxe5 17. Nxe5 Nd4 18. Nf3 Nxf3 19. Kxf3 Qb7 {0-1 (39) Sahil,T (2245)-Milanovic,D (2471) Arandjelovac 2021}) 13. Bd2 {[%emt 0:05:55] White is more active.} (13. Bxf6 $5 Bxf6 14. h3 $16) 13... Qb6 {[%emt 0:03:30]} 14. Rb1 {[%emt 0:02:01] White is slightly better.} e6 {[%emt 0:06:20]} 15. dxe6 {[%emt 0:06:23]} fxe6 {[%emt 0:00:08]} 16. e5 {[%emt 0:12:07]} (16. Re1 $5 {[%cal Re4e5]}) 16... Ng4 {[%emt 0:11:38]} 17. exd6 {[%emt 0:06:43] And now h3 would win.} Qc6 {[%emt 0:02:08]} 18. Re1 {[%emt 0:09:14]} Ne5 {[%emt 0:01:48] [#]} 19. Rxe5 {[%emt 0:01:34]} Bxe5 {[%emt 0:00:07]} 20. Bxh6 {[%emt 0:01:17] Really sharp!} Bg7 {[%emt 0:00:14][%mdl 8192] A mistake that costs the game.} (20... Rf5 $16) 21. Bxg7 $18 {[%emt 0:00:39]} Kxg7 {[%emt 0:00:09]} 22. Qe2 {[%emt 0:01:29]} Rf5 {[%emt 0:09:47] ...Raf8 is the strong threat.} 23. g4 {[%emt 0:15:48] White is clearly winning.} Rf7 {[%emt 0:07:09]} (23... Rxf3 $142 24. Qxf3 Qxf3+ 25. Kxf3 Nb8) 24. Qe5+ {[%emt 0:02:20]} Kg8 {[%emt 0:02:33]} 25. Ne4 {[%emt 0:00:59]} Raf8 {[%emt 0:01:37]} 26. Qxe6 {[%emt 0:00:14] Threatens to win with Nfg5.} Nc7 {[%emt 0:02:56]} 27. Qxg6+ {[%emt 0:03:07]} Rg7 {[%emt 0:00:11]} 28. Nf6+ {[%emt 0:00:43]} Rxf6 {[%emt 0:00:24]} 29. Qxf6 {[%emt 0:00:04]} Nd5 {[%emt 0:04:42]} 30. Qe6+ {[%emt 0:02:41]} Rf7 {[%emt 0:01:18] [#]} 31. Qxf7+ $3 {[%emt 0:00:05] Weighted Error Value: White=0.11 (very precise) /Black=0.71} 1-0

[Event "IV Estrellas 2022"]
[Site "La Palma"]
[Date "2022.08.12"]
[Round "9.17"]
[White "Ramirez Maillo, Cristian"]
[Black "Diaz Perez, Michel Alejandro"]
[Result "1-0"]
[ECO "B22"]
[WhiteElo "1896"]
[BlackElo "2433"]
[Annotator "TA"]
[PlyCount "63"]
[EventDate "2022.08.06"]
[EventType "swiss"]
[EventCountry "ESP"]
[SourceTitle "playchess.com"]
[Source "ChessBase"]
[SourceQuality "1"]
[TimeControl "5400+30"]

{[%evp 9,63,13,10,25,25,19,39,36,56,29,56,34,66,20,44,51,110,52,141,116,243,280,447,433,720,716,815,768,1084,1071,1014,908,943,951,1131,1120,1059,1127,1126,1126,1101,458,1104,1106,973,624,602,602,5410,5410,5406,5373,2845,2666,1532,1428]} 1. e4 {[%emt 0:00:01][%cal Be2e4,Be4e5][%mdl 32]} c5 {[%emt 0:00:06]} 2. c3 {[%emt 0:00:09]} Nf6 {[%emt 0:00:06]} 3. e5 {[%emt 0:00:33]} Nd5 {[%emt 0:00:04]} 4. g3 {[%emt 0:00:08]} Nc6 {[%emt 0:04:38]} 5. Bg2 {[%emt 0:00:40]} Nb6 {[%emt 0:05:48]} 6. Nf3 {[%emt 0:01:13] B22: Sicilian: 2 c3.} d5 {[%emt 0:03:01]} 7. exd6 {[%emt 0:02:20]} Qxd6 {[%emt 0:01:03]} (7... e5 {seems wilder.} 8. d4 exd4 9. O-O Bxd6 10. cxd4 O-O) 8. O-O $1 {[%emt 0:00:52] [#] White is slightly better.} e5 $146 {[%emt 0:11:03] Prevents d4.} ({Predecessor:} 8... g6 9. Na3 Be6 10. d4 cxd4 11. Nb5 Qd7 12. Nfxd4 Bd5 13. Bf4 Rc8 14. Re1 Bxg2 15. Nd6+ Kd8 16. Nxf7+ Ke8 17. Nd6+ Kd8 18. Ne6+ {1-0 (18) Thing,B (2264)-Kuzub,P (1976) Moscow 2019}) 9. Re1 {[%emt 0:02:48][%cal Of3e5] Threatens to win with Nxe5!} Be7 {[%emt 0:00:44]} 10. a4 {[%emt 0:03:56][%cal Ba2a4,Ba4a5][%mdl 32]} Be6 {[%emt 0:06:05]} 11. a5 $1 {[%emt 0:02:26]} Nd7 {[%emt 0:00:03]} 12. a6 {[%emt 0:00:34]} b6 {[%emt 0:15:24] [#]} (12... bxa6 $14 13. Rxa6 Rc8) 13. d4 {[%emt 0:06:07]} (13. Na3 $1 $16 {[%cal Ra3b5] Nb5 is the strong threat.} Rc8 14. d3) 13... cxd4 {[%emt 0:09:14]} (13... exd4 $2 14. Bf4 Qd5 15. Nh4 Qxg2+ 16. Kxg2 $18) (13... O-O $1 $14) 14. cxd4 {[%emt 0:00:35] aiming for Nc3.} exd4 {[%emt 0:02:15] Black cannot hold the game after this.} (14... Bg4 $16) 15. Bf4 $18 {[%emt 0:01:46]} ({Less strong is} 15. Nxd4 Qxd4 16. Bxc6 Qxd1 17. Rxd1 Rd8 $16) 15... Qc5 {[%emt 0:03:57]} (15... Qb4 {was called for.} 16. Ra4 Qxb2) 16. Na3 {[%emt 0:07:10][%cal Bb1a3,Ba3c2,Bc2b4][%mdl 32] White is clearly winning.} (16. Nxd4 Qxd4 17. Bxc6 Qxd1 18. Rxd1 Rc8 $16) 16... Bd5 {[%emt 0:12:36]} (16... Qh5 $142 17. Nxd4 Qxd1 18. Raxd1 Nxd4 19. Bxa8 Bc5) 17. Rc1 {[%emt 0:00:06]} Qb4 {[%emt 0:04:03]} 18. Nc2 {[%emt 0:06:55][%mdl 64] Deflection} Qb3 {[%emt 0:02:13]} 19. Nfxd4 {[%emt 0:04:05]} Nxd4 {[%emt 0:01:05]} 20. Qxd4 {[%emt 0:01:11]} Nf6 {[%emt 0:02:48]} 21. Nb4 {[%emt 0:02:39]} Bxg2 {[%emt 0:01:07]} 22. Rxe7+ {[%emt 0:01:53]} Kxe7 {[%emt 0:00:30]} 23. Qd6+ {[%emt 0:00:20]} (23. Kxg2 Qe6 $16) 23... Ke8 {[%emt 0:00:05]} 24. Re1+ {[%emt 0:00:19]} ({Weaker is} 24. Kxg2 Qe6 $16) 24... Be4 {[%emt 0:00:21] [#]} 25. Qc6+ {[%emt 0:00:35]} (25. Rxe4+ $142 $1 {[%mdl 512]} Nxe4 26. Qc6+ Ke7 27. Qb7+ Kf6 28. Qxe4) 25... Ke7 {[%emt 0:07:05]} (25... Kf8 $142 26. Rxe4 Qd1+ 27. Kg2 Qd8) 26. Rxe4+ {[%emt 0:01:53][%mdl 64] Remove Defender} Nxe4 {[%emt 0:00:17]} 27. Nd5+ {[%emt 0:04:40]} Qxd5 {[%emt 0:00:14]} 28. Qxd5 {[%emt 0:00:06]} Nf6 {[%emt 0:00:58]} 29. Qd6+ {[%emt 0:00:06]} Ke8 {[%emt 0:00:09]} 30. Qc6+ {[%emt 0:00:05]} Ke7 {[%emt 0:00:53]} 31. Bd6+ {[%emt 0:00:07]} Ke6 {[%emt 0:00:28]} 32. Bb8+ {[%emt 0:00:07] Weighted Error Value: White=0.49/Black=0.54} 1-0